bitfinex/quotes_BTCUSD_20251007
["timestamp","ask_amount","ask_price","bid_price","bid_amount"]
[1759845003509,0.8857949,123650.0,123640.0,0.44160826]
[1759845003510,0.21638686,123650.0,123640.0,0.44160826]
[1759845003688,0.21698819,123650.0,123640.0,0.44160826]
[1759845004024,0.18449819,123650.0,123640.0,0.44160826]
[1759845004240,0.21698819,123650.0,123640.0,0.44160826]
[1759845004458,0.21698819,123650.0,123640.0,0.43760826]
[1759845004675,0.21798819,123650.0,123640.0,0.43860826]
[1759845005303,0.21698819,123650.0,123640.0,0.43760826]
[1759845005717,0.21798819,123650.0,123640.0,0.43860826]
[1759845005916,0.22298819,123650.0,123640.0,0.43860826]
[1759845006118,0.19049819,123650.0,123640.0,0.66104826]
[1759845006890,0.16834819,123650.0,123640.0,0.66104826]
[1759845007093,0.16834819,123650.0,123640.0,0.68359826]
[1759845007706,0.16734819,123650.0,123640.0,0.68259826]
[1759845007975,0.00560133,123650.0,123640.0,0.70108826]
[1759845008177,0.00660133,123650.0,123640.0,0.70208826]
[1759845008380,0.16834819,123650.0,123640.0,0.46232826]
[1759845008581,0.16834819,123650.0,123640.0,0.72983109]
[1759845008786,0.18949819,123650.0,123640.0,0.70628109]
[1759845008986,0.16734819,123650.0,123640.0,0.70628109]
[1759845009195,0.00160133,123650.0,123640.0,0.70208826]
[1759845009367,0.00160133,123650.0,123640.0,0.78521032]
[1759845009623,0.00460133,123650.0,123640.0,0.78521032]
[1759845010408,0.00160133,123650.0,123640.0,2.18013632]
[1759845010636,0.00060133,123650.0,123640.0,2.46953496]
[1759845010806,0.00160133,123650.0,123640.0,2.46953496]
[1759845010999,0.00260133,123650.0,123640.0,2.47053496]
[1759845011398,0.00160133,123650.0,123640.0,2.80953496]
[1759845011805,0.13279669,123680.0,123640.0,2.78160602]
[1759845012033,0.13279669,123680.0,123670.0,0.08404]
[1759845012425,0.13279669,123680.0,123670.0,0.34631]
[1759845012632,0.25068539,123690.0,123670.0,0.399431]
[1759845012807,0.25068539,123690.0,123670.0,0.48255306]
[1759845013219,0.001,123680.0,123670.0,0.48255306]
[1759845013562,0.25068539,123690.0,123670.0,0.48255306]
[1759845013775,0.25168539,123690.0,123670.0,0.48255306]
[1759845014040,0.001,123690.0,123680.0,0.01849]
[1759845014177,0.1616818,123700.0,123680.0,0.11787607]
[1759845014389,0.1616818,123700.0,123690.0,0.23968]
[1759845014574,0.16979475,123710.0,123690.0,0.28072]
[1759845014780,0.16165603,123720.0,123700.0,0.45485814]
[1759845014969,0.16978931,123730.0,123710.0,0.27839684]
[1759845015172,0.00050063,123730.0,123720.0,0.01616553]
[1759845015413,0.00050063,123730.0,123720.0,0.04104]
[1759845015590,0.00050063,123730.0,123720.0,0.02255]
[1759845015810,0.00050063,123730.0,123720.0,0.61684]
[1759845015999,0.16614291,123730.0,123720.0,0.68239]
[1759845016443,0.16214291,123730.0,123720.0,0.68239]
[1759845016748,0.00250063,123730.0,123720.0,0.68239]
[1759845016948,0.00250063,123730.0,123720.0,0.87640886]
[1759845017391,0.00250063,123730.0,123720.0,0.88248886]
[1759845017644,0.00250063,123730.0,123720.0,2.16259286]
[1759845017845,0.00250063,123730.0,123720.0,2.16359286]
[1759845017846,0.00350063,123730.0,123720.0,2.16359286]
[1759845018055,0.00510294,123730.0,123720.0,2.16359286]
[1759845018265,0.00510294,123730.0,123720.0,2.69540011]
[1759845018472,0.00510294,123730.0,123720.0,2.78574476]
[1759845021147,0.1697825,123700.0,123680.0,1.07239275]
[1759845021382,0.00808342,123710.0,123690.0,0.11432206]
[1759845021592,0.18260415,123710.0,123680.0,0.13839481]
[1759845021818,0.16169455,123690.0,123680.0,0.05527275]
[1759845022035,0.16169455,123690.0,123680.0,1.01708]
[1759845022178,0.16169455,123690.0,123680.0,1.04828]
[1759845022411,0.16169455,123690.0,123680.0,0.93408]
[1759845022793,0.16368192,123700.0,123680.0,1.13240206]
[1759845023012,0.002,123700.0,123690.0,1.01351]
[1759845023229,0.002,123700.0,123690.0,1.04828]
[1759845023512,0.16368148,123700.0,123690.0,1.03491]
[1759845023731,0.17025415,123710.0,123690.0,1.1149068]
[1759845023947,0.16168148,123700.0,123690.0,1.1149068]
[1759845024157,0.16168148,123700.0,123690.0,1.0970768]
[1759845024369,0.17025415,123710.0,123690.0,1.1282768]
[1759845024841,0.17425415,123710.0,123690.0,1.1292768]
[1759845025059,0.005,123700.0,123690.0,1.1292768]
[1759845025269,0.005,123700.0,123690.0,1.24255076]
[1759845025479,0.00450032,123710.0,123690.0,1.24255076]
[1759845025705,0.00950032,123710.0,123700.0,0.08312206]
[1759845025924,0.00950032,123710.0,123700.0,0.173565]
[1759845026134,0.16616873,123710.0,123700.0,0.10452206]
[1759845026314,0.16737066,123710.0,123700.0,1.60016206]
[1759845026551,0.16737066,123710.0,123700.0,1.01704]
[1759845026759,0.16337066,123710.0,123700.0,0.0214]
[1759845026989,0.16337066,123710.0,123700.0,1.054963]
[1759845027202,0.00170225,123710.0,123700.0,1.16902506]
[1759845028089,0.01370225,123710.0,123700.0,1.17002506]
[1759845028513,0.01370225,123710.0,123700.0,1.15665506]
[1759845028725,0.01370225,123710.0,123700.0,1.17002506]
[1759845028975,0.01370225,123710.0,123700.0,1.20017696]
[1759845029226,0.01370225,123710.0,123700.0,0.077893]
[1759845029431,0.17537066,123710.0,123700.0,0.060323]
[1759845029642,0.17537066,123710.0,123700.0,0.33704]
[1759845029855,0.20227066,123710.0,123700.0,0.99652]
[1759845030084,0.00170225,123710.0,123700.0,1.05251]
[1759845030306,0.00370225,123710.0,123700.0,1.1335068]
[1759845030520,0.00370225,123710.0,123700.0,0.1028568]
[1759845030745,0.16537066,123710.0,123700.0,1.01838]
[1759845030954,0.00170225,123710.0,123700.0,1.01738]
[1759845031140,0.16737066,123710.0,123700.0,1.01838]
[1759845031298,0.17037066,123710.0,123700.0,1.01838]
[1759845031504,0.00470225,123710.0,123700.0,1.01738]
[1759845031911,0.16837066,123710.0,123700.0,1.01838]
[1759845032134,0.18982066,123710.0,123700.0,0.001]
[1759845032335,0.16837066,123710.0,123700.0,0.99652]
[1759845032773,0.16837066,123710.0,123700.0,1.01838]
[1759845032950,0.16837066,123710.0,123700.0,1.0983768]
[1759845033490,1.15682403,123710.0,123700.0,0.33704]
[1759845033706,0.25901066,123710.0,123700.0,0.66044]
[1759845034352,1.18296403,123710.0,123700.0,0.001]
[1759845034569,1.60408609,123710.0,123700.0,0.42004]
[1759845034793,1.60508609,123710.0,123700.0,0.4824]
[1759845034994,0.69943272,123710.0,123700.0,0.4824]
[1759845035403,1.60508609,123710.0,123700.0,0.4824]
[1759845035587,1.61208609,123710.0,123700.0,0.4824]
[1759845035760,1.60508609,123710.0,123700.0,0.4824]
[1759845036220,1.61308609,123710.0,123700.0,0.4824]
[1759845036559,1.61308609,123710.0,123700.0,0.001]
[1759845036764,1.61308609,123710.0,123700.0,0.43844]
[1759845036765,1.60908609,123710.0,123700.0,0.43844]
[1759845037190,1.61308609,123710.0,123700.0,0.43944]
[1759845037407,0.70243272,123710.0,123700.0,0.43944]
[1759845037617,1.60908609,123710.0,123700.0,0.43844]
[1759845037817,0.69843272,123710.0,123700.0,0.43844]
[1759845038017,1.61408609,123710.0,123700.0,0.43944]
[1759845038424,0.70343272,123710.0,123700.0,0.43944]
[1759845038639,0.55027066,123710.0,123700.0,0.43944]
[1759845038835,0.56317066,123710.0,123700.0,0.43944]
[1759845039218,1.61566609,123710.0,123700.0,0.43944]
[1759845039422,0.70501272,123710.0,123700.0,0.43944]
[1759845039628,1.61566609,123710.0,123700.0,0.43944]
[1759845039895,0.70501272,123710.0,123700.0,0.43944]
[1759845040082,1.61566609,123710.0,123700.0,0.43944]
[1759845040710,0.63339272,123710.0,123700.0,0.43944]
[1759845040917,0.55027066,123710.0,123700.0,0.43944]
[1759845041128,0.59639066,123710.0,123700.0,0.43944]
[1759845041358,0.69246272,123710.0,123700.0,0.43944]
[1759845041580,0.70501272,123710.0,123700.0,0.43944]
[1759845041714,1.61566609,123710.0,123700.0,0.43944]
[1759845042593,0.70501272,123710.0,123700.0,0.43944]
[1759845042798,0.64629272,123710.0,123700.0,0.43944]
[1759845043001,0.51637066,123710.0,123700.0,0.46145]
[1759845043210,0.17637066,123710.0,123700.0,0.46145]
[1759845044287,0.01470225,123710.0,123700.0,0.46145]
[1759845044500,0.01470225,123710.0,123700.0,0.541057]
[1759845044718,0.01470225,123710.0,123700.0,0.544877]
[1759845045197,0.00970225,123710.0,123700.0,0.62699906]
[1759845045401,0.00970225,123710.0,123700.0,0.99715096]
[1759845045608,0.00170225,123710.0,123700.0,0.99715096]
[1759845045946,0.00370225,123710.0,123700.0,0.99715096]
[1759845046362,0.00370225,123710.0,123700.0,0.55871096]
[1759845046610,0.00370225,123710.0,123700.0,1.55411096]
[1759845046789,0.00770225,123710.0,123700.0,0.55971096]
[1759845046995,0.00770225,123710.0,123700.0,1.55511096]
[1759845047157,0.00370225,123710.0,123700.0,2.94903696]
[1759845047780,0.00770225,123710.0,123700.0,2.46380206]
[1759845047981,0.00770225,123710.0,123700.0,1.49071906]
[1759845048267,0.00170225,123710.0,123700.0,1.04783]
[1759845048475,0.00270225,123710.0,123700.0,1.05283]
[1759845048702,0.00270225,123710.0,123700.0,1.06483]
[1759845048933,0.00270225,123710.0,123700.0,1.1328268]
[1759845049143,0.00270225,123710.0,123700.0,1.1024068]
[1759845049374,0.16437066,123710.0,123700.0,0.1070068]
[1759845049606,0.17396539,123720.0,123700.0,1.02237]
[1759845049821,0.17396539,123720.0,123700.0,1.01741826]
[1759845050038,0.2152568,123730.0,123700.0,1.04783826]
[1759845050289,0.003,123710.0,123700.0,1.12883506]
[1759845050707,0.27011113,123740.0,123700.0,1.21095712]
[1759845050928,0.16389713,123730.0,123710.0,0.03042]
[1759845051102,0.003,123720.0,123710.0,0.03042]
[1759845051359,0.003,123720.0,123710.0,0.36986684]
[1759845051577,0.28242113,123740.0,123710.0,0.4557068]
[1759845051760,0.28242113,123740.0,123710.0,0.53882886]
[1759845052534,0.27011113,123740.0,123720.0,0.03042]
[1759845052735,0.27011113,123740.0,123730.0,0.26125]
[1759845052941,0.26402922,123740.0,123730.0,0.26125]
[1759845053141,0.29685922,123740.0,123730.0,0.268407]
[1759845053343,0.29685922,123740.0,123730.0,0.23924]
[1759845053344,0.29485922,123740.0,123730.0,0.23924]
[1759845053747,0.13823,123740.0,123730.0,0.23924]
[1759845053962,0.13823,123740.0,123730.0,0.26125]
[1759845053963,0.1054,123740.0,123730.0,0.26125]
[1759845054172,0.1004,123740.0,123730.0,0.27837]
[1759845054372,0.1064,123740.0,123730.0,0.27837]
[1759845054579,0.1124,123740.0,123730.0,0.290087]
[1759845054782,0.27402922,123740.0,123730.0,0.962087]
[1759845055037,0.1124,123740.0,123730.0,1.063207]
[1759845055195,0.1124,123740.0,123730.0,1.14632906]
[1759845055587,0.1124,123740.0,123730.0,1.1534239]
[1759845055991,0.1124,123740.0,123730.0,2.4268508]
[1759845056199,0.1064,123740.0,123730.0,2.4258508]
[1759845056397,0.1074,123740.0,123730.0,2.4268508]
[1759845056639,0.1014,123740.0,123730.0,2.4268508]
[1759845056833,0.1014,123740.0,123730.0,0.673]
[1759845056834,0.28354922,123740.0,123730.0,0.673]
[1759845057041,0.28314989,123740.0,123730.0,0.9992]
[1759845057236,0.28414989,123740.0,123730.0,1.0002]
[1759845057477,0.28414989,123740.0,123730.0,0.9962]
[1759845057716,0.28414989,123740.0,123730.0,0.759]
[1759845057717,0.70049195,123740.0,123730.0,0.759]
[1759845057938,0.69949195,123740.0,123730.0,0.99516]
[1759845058163,1.61014532,123740.0,123710.0,0.0799968]
[1759845058391,0.16165535,123720.0,123710.0,0.336]
[1759845058629,0.16166841,123710.0,123700.0,0.33654803]
[1759845058872,0.21766245,123710.0,123700.0,0.99562803]
[1759845059080,0.18218841,123710.0,123700.0,0.99562803]
[1759845059507,0.21540841,123710.0,123700.0,0.99562803]
[1759845060364,0.18218841,123710.0,123700.0,0.99562803]
[1759845060590,0.002,123710.0,123700.0,1.01948803]
[1759845060813,0.002,123710.0,123700.0,1.11717009]
[1759845061028,0.17197898,123730.0,123700.0,1.19616689]
[1759845061252,0.16972494,123730.0,123700.0,1.19616689]
[1759845061472,0.23011141,123740.0,123710.0,0.01656]
[1759845061692,0.17197941,123730.0,123720.0,0.32316]
[1759845061905,0.26027141,123740.0,123720.0,0.376336]
[1759845062118,0.16389632,123730.0,123720.0,0.032316]
[1759845062328,0.22307843,123730.0,123700.0,0.08371009]
[1759845062593,0.003,123710.0,123700.0,0.50158803]
[1759845062805,0.18560841,123710.0,123700.0,0.00158803]
[1759845063027,0.19181634,123720.0,123700.0,0.99570803]
[1759845063243,0.16165634,123720.0,123700.0,1.07570483]
[1759845063465,0.62700645,123730.0,123700.0,1.07570483]
[1759845063679,0.00245429,123720.0,123710.0,0.02086]
[1759845063871,0.16410964,123720.0,123710.0,0.02086]
[1759845064070,0.16410964,123720.0,123710.0,0.1008568]
[1759845064220,0.00020025,123720.0,123710.0,0.1008568]
[1759845064442,0.00020025,123720.0,123710.0,0.1174168]
[1759845065800,0.00320025,123720.0,123710.0,0.20153886]
[1759845066008,0.00320025,123720.0,123710.0,0.23169076]
[1759845066226,0.00320025,123720.0,123710.0,1.62661676]
[1759845066484,0.00320025,123720.0,123710.0,1.97461676]
[1759845066716,0.0604,123740.0,123730.0,0.34]
[1759845066937,0.0604,123740.0,123730.0,1.90137999]
[1759845067134,0.0604,123740.0,123730.0,0.81637099]
[1759845067340,0.0604,123740.0,123730.0,1.81149099]
[1759845068022,0.0604,123740.0,123730.0,1.81749099]
[1759845068575,0.0604,123740.0,123730.0,0.82237099]
[1759845068779,0.0604,123740.0,123730.0,1.81733099]
[1759845069000,0.0614,123740.0,123730.0,1.82333099]
[1759845069200,0.0614,123740.0,123730.0,1.81733099]
[1759845069406,0.0604,123740.0,123730.0,0.81637099]
[1759845069582,0.0604,123740.0,123730.0,0.82237099]
[1759845069786,0.0214,123740.0,123730.0,1.81333099]
[1759845070044,0.0214,123740.0,123730.0,1.72937099]
[1759845070290,0.0214,123740.0,123730.0,1.81933099]
[1759845070696,0.0204,123740.0,123730.0,0.43565909]
[1759845070902,0.0204,123740.0,123730.0,0.83592003]
[1759845071120,0.20522326,123740.0,123730.0,1.00092]
[1759845071337,0.20296922,123740.0,123730.0,0.006]
[1759845071547,0.31625128,123740.0,123730.0,0.46544]
[1759845072172,0.18202922,123740.0,123730.0,0.52146824]
[1759845072388,0.18202922,123740.0,123730.0,0.53632824]
[1759845072591,0.18342965,123740.0,123730.0,0.51746824]
[1759845072790,0.02180043,123740.0,123730.0,0.51946824]
[1759845073000,0.02305447,123740.0,123730.0,0.51546824]
[1759845073213,0.20562369,123740.0,123730.0,0.45944]
[1759845073414,0.04674043,123740.0,123730.0,0.46044]
[1759845073630,0.18968369,123740.0,123730.0,0.46044]
[1759845073853,0.20836965,123740.0,123730.0,0.46044]
[1759845074386,0.20836965,123740.0,123730.0,0.54008]
[1759845074598,0.23852965,123740.0,123730.0,0.001]
[1759845074817,1.32976519,123740.0,123730.0,0.001]
[1759845075037,1.32976519,123740.0,123730.0,0.42092]
[1759845075259,1.32976519,123740.0,123730.0,0.47448]
[1759845075710,1.32476519,123740.0,123730.0,0.47348]
[1759845075919,1.32676519,123740.0,123730.0,0.47348]
[1759845076137,1.35991709,123740.0,123730.0,0.47448]
[1759845076344,1.35791709,123740.0,123730.0,0.47448]
[1759845076562,1.35791709,123740.0,123710.0,0.00053971]
[1759845076563,0.50165535,123720.0,123710.0,0.00053971]
[1759845076763,1.25289089,123720.0,123710.0,0.65945971]
[1759845076907,1.30399089,123720.0,123710.0,0.65945971]
[1759845077092,0.63587741,123720.0,123710.0,0.65945971]
[1759845077546,0.64187741,123720.0,123710.0,0.66045971]
[1759845078929,0.64187741,123720.0,123710.0,0.68031971]
[1759845078930,0.16565535,123720.0,123710.0,0.68031971]
[1759845079129,0.16565535,123720.0,123710.0,0.65945971]
[1759845079130,0.21275535,123720.0,123710.0,0.65945971]
[1759845079338,0.29587741,123720.0,123710.0,0.00053971]
[1759845079540,0.96599089,123720.0,123710.0,0.65941971]
[1759845079755,0.29887741,123720.0,123710.0,0.66041971]
[1759845079948,0.003,123720.0,123710.0,0.66441971]
[1759845080213,0.16690939,123720.0,123710.0,0.66441971]
[1759845080448,0.02394,123720.0,123710.0,0.66441971]
[1759845080660,0.21575535,123720.0,123710.0,0.00553971]
[1759845080876,0.21575535,123720.0,123710.0,0.42153971]
[1759845080877,0.88386883,123720.0,123710.0,0.42153971]
[1759845081078,0.21575535,123720.0,123710.0,0.44789971]
[1759845082033,0.96799089,123720.0,123710.0,0.57649971]
[1759845082244,0.29987741,123720.0,123710.0,0.66049971]
[1759845082446,0.96799089,123720.0,123710.0,0.00153971]
[1759845082647,1.30799089,123720.0,123710.0,0.00153971]
[1759845082854,1.30799089,123720.0,123710.0,0.44437971]
[1759845083061,1.30799089,123720.0,123710.0,0.00153971]
[1759845083274,1.30799089,123720.0,123710.0,0.44253971]
[1759845083663,1.35827089,123720.0,123710.0,0.00153971]
[1759845083881,2.02638437,123720.0,123710.0,0.00153971]
[1759845084091,2.05653627,123720.0,123710.0,0.10653971]
[1759845084682,1.38842279,123720.0,123710.0,0.10653971]
[1759845085295,1.38742279,123720.0,123710.0,0.10653971]
[1759845085530,1.38442279,123720.0,123710.0,0.10553971]
[1759845085739,0.69215741,123720.0,123710.0,0.10653971]
[1759845086192,0.68915741,123720.0,123710.0,0.10553971]
[1759845086406,1.35427089,123720.0,123710.0,0.10553971]
[1759845086739,1.36027089,123720.0,123710.0,0.10653971]
[1759845086952,1.36027089,123720.0,123710.0,0.57653971]
[1759845087072,1.35427089,123720.0,123710.0,0.65953971]
[1759845087279,1.35627089,123720.0,123710.0,0.66053971]
[1759845087528,1.35927089,123720.0,123710.0,0.66053971]
[1759845088251,0.69115741,123720.0,123710.0,0.66053971]
[1759845088485,1.35927089,123720.0,123710.0,0.66053971]
[1759845088681,1.35427089,123720.0,123710.0,0.65953971]
[1759845088796,1.35627089,123720.0,123710.0,0.65953971]
[1759845089046,1.35827089,123720.0,123710.0,0.66053971]
[1759845089537,1.35827089,123720.0,123710.0,0.65953971]
[1759845089743,1.35727089,123720.0,123710.0,0.66053971]
[1759845089976,1.35927089,123720.0,123710.0,0.66053971]
[1759845090181,1.35627089,123720.0,123710.0,0.65953971]
[1759845090399,1.35427089,123720.0,123710.0,0.65953971]
[1759845090654,1.35427089,123720.0,123710.0,0.66053971]
[1759845090655,1.35827089,123720.0,123710.0,0.66053971]
[1759845090867,0.69015741,123720.0,123710.0,0.66053971]
[1759845091144,1.35827089,123720.0,123710.0,0.66053971]
[1759845091585,1.35827089,123720.0,123710.0,0.00153971]
[1759845091796,1.39242279,123720.0,123710.0,0.66049971]
[1759845092219,0.69415741,123720.0,123710.0,0.66049971]
[1759845092614,1.36227089,123720.0,123710.0,0.66049971]
[1759845093135,0.69415741,123720.0,123710.0,0.66049971]
[1759845093760,1.36227089,123720.0,123710.0,0.66049971]
[1759845094150,0.69415741,123720.0,123710.0,0.66049971]
[1759845095283,0.53250206,123720.0,123710.0,0.66049971]
[1759845095502,0.12479206,123720.0,123710.0,0.66049971]
[1759845095745,0.35808145,123720.0,123710.0,0.66045971]
[1759845095957,0.35582741,123720.0,123710.0,0.66045971]
[1759845096382,0.04222,123720.0,123710.0,0.66045971]
[1759845096571,0.25072939,123720.0,123710.0,0.66045971]
[1759845096803,0.27325535,123720.0,123710.0,0.66045971]
[1759845097350,0.27325535,123720.0,123710.0,0.00153971]
[1759845097554,0.27325535,123720.0,123710.0,0.43037971]
[1759845097555,0.69637741,123720.0,123710.0,0.43037971]
[1759845097766,0.69637741,123720.0,123710.0,0.51437971]
[1759845097991,0.69237741,123720.0,123710.0,0.42157971]
[1759845098321,1.35649089,123720.0,123710.0,0.42257971]
[1759845098537,1.35749089,123720.0,123710.0,0.00353971]
[1759845098743,1.35749089,123720.0,123710.0,0.32437971]
[1759845098948,1.35649089,123720.0,123710.0,0.32337971]
[1759845099247,0.68837741,123720.0,123710.0,0.32337971]
[1759845099482,0.69037741,123720.0,123710.0,0.32437971]
[1759845099697,1.35849089,123720.0,123710.0,0.32437971]
[1759845099894,0.68837741,123720.0,123710.0,0.00053971]
[1759845100105,0.68837741,123720.0,123710.0,0.32337971]
[1759845100283,0.69037741,123720.0,123710.0,0.32437971]
[1759845101510,0.68837741,123720.0,123710.0,0.32337971]
[1759845101709,0.69137741,123720.0,123710.0,0.32437971]
[1759845102321,0.68837741,123720.0,123710.0,0.32337971]
[1759845102701,0.69137741,123720.0,123710.0,0.32437971]
[1759845103301,0.69137741,123720.0,123710.0,0.66041971]
[1759845103501,1.35949089,123720.0,123710.0,0.00153971]
[1759845103748,0.72152931,123720.0,123710.0,0.32433971]
[1759845103956,1.38964279,123720.0,123710.0,0.32433971]
[1759845104160,1.38964279,123720.0,123710.0,0.00153971]
[1759845104372,2.10626627,123720.0,123710.0,0.00153971]
[1759845104582,2.13126627,123720.0,123710.0,0.09273971]
[1759845104791,1.46315279,123720.0,123710.0,0.09273971]
[1759845105038,0.16166841,123710.0,123700.0,4.826e-05]
[1759845105323,0.71204451,123710.0,123700.0,0.23884826]
[1759845105593,1.47924395,123710.0,123700.0,0.23884826]
[1759845105792,1.37924395,123710.0,123700.0,0.23884826]
[1759845106008,1.49408946,123710.0,123700.0,0.23884826]
[1759845106227,1.39608946,123710.0,123700.0,0.23984826]
[1759845106453,0.73312788,123710.0,123700.0,0.23984826]
[1759845106885,0.70297598,123710.0,123700.0,0.23984826]
[1759845107768,0.70297598,123710.0,123700.0,0.24184826]
[1759845110809,0.70297598,123710.0,123700.0,0.24204857]
[1759845113478,0.70297598,123710.0,123700.0,0.24196857]
[1759845113479,1.37108946,123710.0,123700.0,0.24196857]
[1759845113678,1.37108946,123710.0,123700.0,0.32596857]
[1759845114087,0.70297598,123710.0,123700.0,0.32596857]
[1759845114322,1.37108946,123710.0,123700.0,0.32596857]
[1759845115133,0.75148598,123710.0,123700.0,0.32596857]
[1759845115343,0.70297598,123710.0,123700.0,0.32596857]
[1759845115554,0.68813047,123710.0,123700.0,0.32596857]
[1759845117329,0.25256841,123710.0,123700.0,0.32596857]
[1759845117536,0.20836841,123710.0,123700.0,0.32596857]
[1759845118122,0.25256841,123710.0,123700.0,0.32596857]
[1759845118711,0.0909,123710.0,123700.0,0.32596857]
[1759845118860,0.19874245,123710.0,123700.0,0.32596857]
[1759845119068,0.03482,123710.0,123700.0,0.36510218]
[1759845119267,0.19874245,123710.0,123700.0,0.36510218]
[1759845119479,0.19648841,123710.0,123700.0,0.36510218]
[1759845120416,0.002,123710.0,123700.0,0.39952218]
[1759845120639,0.002,123710.0,123700.0,0.41129218]
[1759845120856,0.002,123710.0,123700.0,0.41431218]
[1759845121089,0.002,123710.0,123700.0,0.08657218]
[1759845121317,0.16219704,123720.0,123700.0,0.51987857]
[1759845121537,0.01314969,123720.0,123700.0,1.01100857]
[1759845121761,0.001,123710.0,123700.0,1.02956857]
[1759845122050,0.001,123710.0,123700.0,0.06941957]
[1759845122308,0.17632462,123730.0,123700.0,0.49644153]
[1759845122524,0.16972465,123730.0,123710.0,0.02674]
[1759845122738,0.16972465,123730.0,123720.0,0.01963]
[1759845123168,0.20330465,123730.0,123700.0,0.48019153]
[1759845123381,0.16165535,123720.0,123710.0,0.23893941]
[1759845123602,0.19748939,123720.0,123710.0,0.48968955]
[1759845123855,0.19623535,123720.0,123710.0,0.72824955]
[1759845124065,0.26255535,123720.0,123710.0,0.42041941]
[1759845124274,0.25355535,123720.0,123710.0,0.65897941]
[1759845124681,0.03358,123720.0,123710.0,0.65897941]
[1759845124907,0.16264343,123730.0,123710.0,0.68860941]
[1759845125118,0.16165535,123720.0,123710.0,0.74876455]
[1759845126556,0.16165535,123720.0,123710.0,0.75376455]
[1759845126757,0.16265535,123720.0,123710.0,0.75276455]
[1759845127294,0.17426535,123720.0,123710.0,0.75176455]
[1759845127496,0.17526535,123720.0,123710.0,0.75476455]
[1759845127627,0.19623535,123720.0,123710.0,0.07649455]
[1759845128023,0.23828535,123720.0,123710.0,0.59841941]
[1759845128379,0.25027535,123720.0,123710.0,0.66485941]
[1759845128811,0.3458777,123720.0,123710.0,0.42637941]
[1759845128992,0.3458777,123720.0,123710.0,0.66485941]
[1759845129934,0.3458777,123720.0,123710.0,0.00633941]
[1759845130147,0.3458777,123720.0,123710.0,0.66485941]
[1759845130351,0.16170763,123680.0,123670.0,0.55260749]
[1759845130555,0.25158167,123680.0,123670.0,1.11564856]
[1759845130750,0.24932763,123680.0,123670.0,0.06666922]
[1759845131011,0.34472969,123680.0,123670.0,0.56714173]
[1759845131404,0.34572969,123680.0,123670.0,0.57514173]
[1759845132000,0.34572969,123680.0,123670.0,0.34534173]
[1759845132208,0.34572969,123680.0,123670.0,0.66778173]
[1759845132651,0.29133969,123680.0,123670.0,0.66778173]
[1759845132791,0.29033969,123680.0,123670.0,0.66178173]
[1759845132994,0.16170763,123680.0,123670.0,0.68141173]
[1759845133192,0.19854167,123680.0,123670.0,0.66378173]
[1759845133474,0.22640763,123680.0,123670.0,0.66378173]
[1759845133718,0.34772969,123680.0,123670.0,0.66378173]
[1759845133861,0.34672969,123680.0,123670.0,0.65978173]
[1759845134267,0.34772969,123680.0,123670.0,0.66278173]
[1759845137821,0.34772969,123680.0,123670.0,0.00430173]
[1759845138070,0.34772969,123680.0,123640.0,0.33608]
[1759845138071,0.50174686,123650.0,123640.0,0.33608]
[1759845138286,0.68476892,123650.0,123640.0,0.99456826]
[1759845138965,0.68476892,123650.0,123640.0,0.57448826]
[1759845139172,0.68476892,123650.0,123640.0,0.65848826]
[1759845139574,0.68476892,123650.0,123640.0,0.66148826]
[1759845139786,0.68576892,123650.0,123640.0,0.66748826]
[1759845140132,0.16274686,123650.0,123640.0,0.68711826]
[1759845140545,0.17435686,123650.0,123640.0,0.68111826]
[1759845140767,0.19532686,123650.0,123640.0,0.66148826]
[1759845140981,0.19632686,123650.0,123640.0,0.66448826]
[1759845141189,0.001,123650.0,123640.0,0.68711826]
[1759845141413,0.16274686,123650.0,123640.0,0.78257009]
[1759845141617,0.16274686,123650.0,123640.0,0.75583009]
[1759845141840,0.19632686,123650.0,123640.0,0.73620009]
[1759845142047,0.19632686,123650.0,123640.0,0.07776009]
[1759845142252,0.26164686,123650.0,123640.0,0.00304826]
[1759845142534,0.26264686,123650.0,123640.0,0.54668826]
[1759845142771,0.26264686,123650.0,123640.0,0.42616826]
[1759845142772,0.68576892,123650.0,123640.0,0.42616826]
[1759845142973,0.68476892,123650.0,123640.0,0.66152826]
[1759845143174,0.68476892,123650.0,123640.0,0.65852826]
[1759845143376,0.68576892,123650.0,123640.0,0.66352826]
[1759845143636,0.68576892,123650.0,123640.0,0.66452826]
[1759845143854,0.68576892,123650.0,123640.0,0.66352826]
[1759845144063,0.68576892,123650.0,123640.0,0.00504826]
[1759845144273,0.71492082,123650.0,123640.0,0.08508826]
[1759845144476,0.50175994,123640.0,123630.0,0.33616]
[1759845144686,0.16178611,123620.0,123610.0,0.32960302]
[1759845144915,0.16178611,123620.0,123610.0,0.98824878]
[1759845144916,0.28074221,123620.0,123610.0,0.98824878]
[1759845145109,0.34480817,123620.0,123610.0,0.74992878]
[1759845145277,0.34480817,123620.0,123610.0,0.98824878]
[1759845146475,0.34480817,123620.0,123610.0,0.99224878]
[1759845146476,0.34680817,123620.0,123610.0,0.99224878]
[1759845148088,0.68680817,123620.0,123610.0,0.99224878]
[1759845150992,0.68680817,123620.0,123610.0,0.33372878]
[1759845151236,0.68680817,123620.0,123610.0,0.99232878]
[1759845151618,0.68680817,123620.0,123610.0,0.99353167]
[1759845152025,0.68680817,123620.0,123610.0,0.99349167]
[1759845154924,0.68680817,123620.0,123610.0,0.33493167]
[1759845155127,0.68680817,123620.0,123610.0,0.65725167]
[1759845155382,0.70153491,123620.0,123610.0,0.65725167]
[1759845156540,0.73168681,123620.0,123610.0,0.33493167]
[1759845156744,0.16182539,123590.0,123580.0,0.0004]
[1759845156946,0.24720149,123590.0,123580.0,0.65900822]
[1759845157257,0.34504745,123590.0,123580.0,0.65900822]
[1759845157563,0.28922745,123590.0,123580.0,0.65900822]
[1759845157986,0.0326,123590.0,123580.0,0.75003516]
[1759845158149,0.0326,123590.0,123580.0,0.64479516]
[1759845158150,0.27754745,123590.0,123580.0,0.64479516]
[1759845158353,0.19442539,123590.0,123580.0,0.67879822]
[1759845158795,0.19442539,123590.0,123580.0,0.68179822]
[1759845159137,0.16182539,123590.0,123580.0,0.67879822]
[1759845159260,0.16507943,123590.0,123580.0,0.68379822]
[1759845159471,0.16282539,123590.0,123580.0,0.76153779]
[1759845159791,0.19525539,123590.0,123580.0,0.67979822]
[1759845159986,0.19625539,123590.0,123580.0,0.68279822]
[1759845160189,0.19625539,123590.0,123580.0,0.68179822]
[1759845160498,0.03443,123590.0,123580.0,0.68179822]
[1759845160704,0.001,123590.0,123580.0,0.68179822]
[1759845160906,0.001,123590.0,123580.0,0.78833179]
[1759845161306,0.18220952,123610.0,123580.0,0.78264179]
[1759845161508,0.16406648,123600.0,123580.0,0.78364179]
[1759845161725,0.001,123590.0,123580.0,0.78764179]